fUSD/lending_fUSD_20240119
["ID","MTS","AMOUNT","RATE_DAILY","PERIOD"]
[312187918,1705683071112,-687.33,0.00022465,2]
[312187919,1705683071124,-500.0,0.00022465,2]
[312187920,1705683071137,-500.0,0.00022465,2]
[312187921,1705683071148,-649.65,0.00022465,2]
[312187922,1705683071158,-500.0,0.00022465,2]
[312187923,1705683071169,-500.0,0.00022465,2]
[312187924,1705683071178,-219.22120649,0.00022465,2]
[312187925,1705683071188,-500.0,0.00022465,2]
[312187926,1705683071197,-660.63,0.00022465,2]
[312187927,1705683071207,-500.0,0.00022465,2]
[312187928,1705683071217,-1226.99,0.00022465,2]
[312187929,1705683071227,-1453.36,0.00022465,2]
[312187930,1705683071237,-685.52,0.00022465,2]
[312187931,1705683071248,-574.9,0.00022465,2]
[312187932,1705683071259,-500.0,0.00022465,2]
[312187933,1705683071270,-500.0,0.00022465,2]
[312187934,1705683071283,-1528.63,0.00022465,2]
[312187935,1705683071293,-500.0,0.00022465,2]
[312187936,1705683071303,-500.0,0.00022465,2]
[312187937,1705683071313,-758.36,0.00022465,2]
[312187938,1705683071323,-472.58014368,0.00022465,2]
[312187939,1705683071333,-964.96,0.00022465,2]
[312187940,1705683071343,-584.77,0.00022465,2]
[312187941,1705683071353,-500.0,0.00022465,2]
[312187942,1705683071363,-500.0,0.00022465,2]
[312187943,1705683071373,-500.0,0.00022465,2]
[312187944,1705683071382,-604.0,0.00022465,2]
[312187945,1705683071392,-500.0,0.00022465,2]
[312187946,1705683071402,-500.0,0.00022465,2]
[312187947,1705683071412,-500.0,0.00022465,2]
[312187948,1705683071422,-500.0,0.00022465,2]
[312187949,1705683071433,-500.0,0.00022465,2]
[312187950,1705683071442,-500.0,0.00022465,2]
[312187951,1705683071452,-1985.31,0.00022465,2]
[312187952,1705683071461,-500.0,0.00022465,2]
[312187953,1705683071471,-2102.59,0.00022465,2]
[312187954,1705683071481,-500.0,0.00022465,5]
[312187955,1705683071490,-500.0,0.00022465,2]
[312187956,1705683071500,-500.0,0.00022465,2]
[312187957,1705683071510,-500.0,0.00022465,2]
[312187958,1705683071520,-865.61,0.00022465,2]
[312187959,1705683071534,-500.0,0.00022465,2]
[312187960,1705683071544,-500.0,0.00022465,2]
[312187961,1705683071554,-705.47,0.00022465,2]
[312187962,1705683071564,-667.44,0.00022465,2]
[312187963,1705683071574,-500.0,0.00022465,2]
[312187964,1705683071584,-500.0,0.00022465,2]
[312187965,1705683071593,-500.0,0.00022465,2]
[312187966,1705683071603,-500.0,0.00022465,2]
[312187967,1705683071614,-500.0,0.00022465,2]
[312187968,1705683071629,-500.0,0.00022465,2]
[312187969,1705683071639,-1229.52976238,0.00022467,2]
[312187970,1705683071649,-226.25,0.00022469,2]
[312187971,1705683071663,-500.0,0.00022499,2]
[312187972,1705683071673,-971.12568826,0.00022502,2]
[312187973,1705683071684,-355.70015446,0.00022502,2]
[312187974,1705683071694,-150.0,0.00022566,2]
[312187975,1705683071792,-150.0,0.00022578,2]
[312187976,1705683071802,-216.55,0.00022582,2]
[312187977,1705683071812,-226.25,0.00022597,2]
[312187978,1705683071823,-150.0,0.000226,2]
[312187979,1705683071833,-180.0,0.00022603,2]
[312187980,1705683071843,-155.0,0.0002261,2]
[312187981,1705683071853,-155.11,0.00022631,2]
[312187982,1705683071862,-1242.0,0.00022667,2]
[312187983,1705683071872,-150.0,0.00022676,2]
[312187984,1705683071882,-581.19,0.00022683,2]
[312187985,1705683071892,-783.45,0.00022683,2]
[312187986,1705683071901,-500.0,0.00022683,2]
[312187987,1705683071911,-155.0,0.00022701,2]
[312187988,1705683071922,-150.0,0.00022712,2]
[312187989,1705683071931,-500.0,0.00022716,2]
[312187990,1705683071941,-554.7,0.00022732,2]
[312187991,1705683071950,-1388.89,0.00022738,2]
[312187992,1705683071959,-1388.89,0.00022738,2]
[312187993,1705683071969,-500.0,0.00022738,2]
[312187994,1705683071978,-558.61,0.00022738,2]
[312187995,1705683071987,-558.61,0.00022738,2]
[312187996,1705683071998,-2824.49,0.00022738,2]
[312187997,1705683072008,-2439.07,0.00022738,2]
[312187998,1705683072018,-4843.52,0.00022738,2]
[312187999,1705683072031,-500.0,0.00022738,2]
[312188000,1705683072041,-1433.16,0.00022738,2]
[312188001,1705683072051,-1681.58,0.00022738,2]
[312188002,1705683072060,-2258.27,0.00022738,2]
[312188003,1705683072070,-854.1,0.00022738,2]
[312188004,1705683072079,-1945.08,0.00022738,2]
[312188005,1705683072088,-898.06,0.00022738,2]
[312188006,1705683072098,-1120.44,0.00022738,2]
[312188007,1705683072107,-698.76,0.00022738,2]
[312188008,1705683072117,-623.01,0.00022738,2]
[312188009,1705683072126,-1701.36,0.00022738,2]
[312188010,1705683072135,-915.97,0.00022738,2]
[312188011,1705683072144,-805.288867,0.00022738,7]
[312188012,1705683072154,-805.288867,0.00022738,7]
[312188013,1705683072163,-151.0,0.00022738,7]
[312188014,1705683072172,-1311.043602,0.00022738,7]
[312188015,1705683072182,-1311.043602,0.00022738,7]
[312188016,1705683072192,-152.055814,0.00022738,7]
[312188017,1705683072201,-152.055814,0.00022738,7]
[312188018,1705683072211,-151.0,0.00022739,7]
[312188019,1705683072220,-151.0,0.00022739,7]
[312188020,1705683072229,-151.0,0.00022739,7]
[312188021,1705683072238,-151.0,0.00022739,7]
[312188022,1705683072255,-151.0,0.00022739,7]
[312188023,1705683072264,-151.0,0.00022739,7]
[312188024,1705683072274,-151.0,0.00022739,7]
[312188025,1705683072288,-151.0,0.00022739,7]
[312188026,1705683072298,-151.0,0.00022739,7]
[312188027,1705683072308,-151.0,0.00022739,7]
[312188028,1705683072318,-153.233753,0.00022739,7]
[312188029,1705683072328,-151.0,0.00022739,7]
[312188030,1705683072338,-151.0,0.00022739,7]
[312188031,1705683072348,-9237.526097,0.00022739,7]
[312188032,1705683072358,-9237.526097,0.00022739,7]
[312188033,1705683072368,-246.922817,0.00022739,7]
[312188034,1705683072378,-246.922817,0.00022739,7]
[312188035,1705683072387,-5202.549118,0.00022739,7]
[312188036,1705683072397,-5202.549118,0.00022739,7]
[312188037,1705683072406,-932.459178,0.00022739,7]
[312188038,1705683072415,-932.459178,0.00022739,7]
[312188039,1705683072425,-196.231334,0.00022739,7]
[312188040,1705683072434,-196.231334,0.00022739,7]
[312188041,1705683072444,-153.189807,0.00022739,7]
[312188042,1705683072454,-153.189807,0.00022739,7]
[312188043,1705683072463,-151.0,0.00022739,7]
[312188044,1705683072474,-151.0,0.00022739,7]
[312188045,1705683072483,-222.129827,0.00022739,7]
[312188046,1705683072493,-222.129827,0.00022739,7]
[312188047,1705683072502,-5165.831101,0.00022739,7]
[312188048,1705683072511,-5165.831101,0.00022739,7]
[312188049,1705683072521,-323.177933,0.00022739,7]
[312188050,1705683072535,-323.177933,0.00022739,7]
[312188051,1705683072545,-500.0,0.00022739,2]
[312188052,1705683072554,-402.44,0.00022739,2]
[312188053,1705683072564,-500.0,0.00022739,2]
[312188054,1705683072574,-500.0,0.00022739,2]
[312188055,1705683072583,-547.75252956,0.00022739,2]
[312188056,1705683072592,-500.0,0.00022739,2]
[312188057,1705683072602,-500.0,0.00022739,2]
[312188058,1705683072611,-500.0,0.00022739,2]
[312188059,1705683072623,-500.0,0.00022739,2]
[312188060,1705683072632,-500.0,0.00022739,2]
[312188061,1705683072641,-500.0,0.00022739,2]
[312188062,1705683072651,-500.0,0.00022739,2]
[312188063,1705683072661,-500.0,0.00022739,2]
[312188064,1705683072670,-500.0,0.00022739,2]
[312188065,1705683072681,-567.84,0.00022739,2]
[312188066,1705683072690,-500.0,0.00022739,2]
[312188067,1705683072700,-500.0,0.00022739,2]
[312188068,1705683072709,-500.0,0.00022739,2]
[312188069,1705683072719,-500.65,0.00022739,2]
[312188070,1705683072728,-263.16,0.00022739,2]
[312188071,1705683072738,-500.0,0.00022739,2]
[312188072,1705683072747,-507.16,0.00022739,2]
[312188073,1705683072757,-237.72,0.00022739,2]
[312188074,1705683072766,-491.40486071,0.00022739,2]
[312188075,1705683072775,-500.0,0.00022739,2]
[312188076,1705683072790,-500.0,0.00022739,2]
[312188077,1705683072800,-500.0,0.00022739,2]
[312188078,1705683072809,-500.0,0.00022739,2]
[312188079,1705683072818,-500.0,0.00022739,2]
[312188080,1705683072827,-500.0,0.00022739,2]
[312188081,1705683072836,-500.0,0.00022739,2]
[312188082,1705683072846,-500.0,0.00022739,2]
[312188083,1705683072856,-500.0,0.00022739,2]
[312188084,1705683072865,-500.0,0.00022739,2]
[312188085,1705683072874,-500.0,0.00022739,2]
[312188086,1705683072884,-500.0,0.00022739,2]
[312188087,1705683072893,-500.0,0.00022739,2]
[312188088,1705683072902,-500.0,0.00022739,2]
[312188089,1705683072911,-500.0,0.00022739,2]
[312188090,1705683072920,-342.41851182,0.00022739,2]
[312188091,1705683072929,-258.96350895,0.00022739,2]
[312188092,1705683072939,-500.0,0.00022739,2]
[312188093,1705683072948,-500.0,0.00022739,2]
[312188094,1705683072957,-629.5,0.00022739,2]
[312188095,1705683072967,-500.0,0.00022739,2]
[312188096,1705683072976,-500.0,0.00022739,2]
[312188097,1705683072985,-500.0,0.00022739,2]
[312188098,1705683072994,-500.0,0.00022739,2]
[312188099,1705683073003,-500.0,0.00022739,2]
[312188100,1705683073013,-500.0,0.00022739,2]
[312188101,1705683073022,-500.0,0.00022739,2]
[312188102,1705683073034,-500.0,0.00022739,2]
[312188103,1705683073044,-640.23,0.00022739,2]
[312188104,1705683073053,-500.0,0.00022739,2]
[312188105,1705683073063,-500.0,0.00022739,2]
[312188106,1705683073073,-500.0,0.00022739,2]
[312188107,1705683073083,-500.0,0.00022739,2]
[312188108,1705683073092,-622.95,0.00022739,2]
[312188109,1705683073102,-500.0,0.00022739,2]
[312188110,1705683073112,-500.0,0.00022739,2]
[312188111,1705683073122,-500.0,0.00022739,2]
[312188112,1705683073131,-500.0,0.00022739,2]
[312188113,1705683073141,-504.41,0.00022739,2]
[312188114,1705683073150,-671.3,0.00022739,2]
[312188115,1705683073160,-610.96,0.00022739,2]
[312188116,1705683073169,-242.17,0.00022739,2]
[312188117,1705683073179,-500.0,0.00022739,2]
[312188118,1705683073188,-500.0,0.00022739,2]
[312188119,1705683073198,-500.0,0.00022739,2]
[312188120,1705683073207,-548.49,0.00022739,2]
[312188121,1705683073216,-681.24,0.00022739,2]
[312188122,1705683073226,-518.28,0.00022739,2]
[312188123,1705683073235,-500.0,0.00022739,2]
[312188124,1705683073245,-605.66,0.00022739,2]
[312188125,1705683073254,-314.46761893,0.00022739,2]
[312188126,1705683073264,-587.01,0.00022739,2]
[312188127,1705683073273,-533.70077219,0.00022739,2]
[312188128,1705683073285,-379.45,0.00022739,2]
[312188129,1705683073295,-500.0,0.00022739,2]
[312188130,1705683073304,-776.62,0.00022739,2]
[312188131,1705683073313,-500.0,0.00022739,2]
[312188132,1705683073322,-500.0,0.00022739,2]
[312188133,1705683073332,-500.0,0.00022739,2]
[312188134,1705683073341,-500.0,0.00022739,2]
[312188135,1705683073350,-500.0,0.00022739,2]
[312188136,1705683073360,-500.0,0.00022739,2]
[312188137,1705683073369,-500.0,0.00022739,2]
[312188138,1705683073378,-699.79,0.00022739,2]
[312188139,1705683073387,-500.0,0.00022739,2]
[312188140,1705683073397,-500.0,0.00022739,2]
[312188141,1705683073406,-500.0,0.00022739,2]
[312188142,1705683073416,-500.0,0.00022739,2]
[312188143,1705683073425,-500.0,0.00022739,2]
[312188144,1705683073434,-500.0,0.00022739,2]
[312188145,1705683073444,-500.0,0.00022739,2]
[312188146,1705683073454,-1527.21,0.00022739,2]
[312188147,1705683073463,-542.12,0.00022739,2]
[312188148,1705683073472,-500.0,0.00022739,2]
[312188149,1705683073481,-647.65,0.00022739,2]
[312188150,1705683073492,-500.0,0.00022739,2]
[312188151,1705683073502,-525.24,0.00022739,2]
[312188152,1705683073511,-500.0,0.00022739,2]
[312188153,1705683073521,-559.07,0.00022739,2]
[312188154,1705683073532,-500.0,0.00022739,2]
[312188155,1705683073542,-500.0,0.00022739,2]
[312188156,1705683073551,-1618.58,0.00022739,2]
[312188157,1705683073561,-541.22,0.00022739,2]
[312188158,1705683073570,-500.0,0.00022739,2]
[312188159,1705683073579,-500.0,0.00022739,2]
[312188160,1705683073589,-500.0,0.00022739,2]
[312188161,1705683073598,-809.64,0.00022739,2]
[312188162,1705683073608,-500.0,0.00022739,2]
[312188163,1705683073618,-512.68,0.00022739,2]
[312188164,1705683073629,-512.46,0.00022739,2]
[312188165,1705683073639,-500.0,0.00022739,2]
[312188166,1705683073648,-500.0,0.00022739,2]
[312188167,1705683073658,-500.0,0.00022739,2]
[312188168,1705683073671,-582.84,0.00022739,2]
[312188169,1705683073682,-500.0,0.00022739,2]
[312188170,1705683073691,-629.94,0.00022739,2]
[312188171,1705683073700,-500.0,0.00022739,2]
[312188172,1705683073710,-500.0,0.00022739,2]
[312188173,1705683073719,-500.0,0.00022739,2]
[312188174,1705683073729,-268.86332655,0.00022739,2]
[312188175,1705683073738,-599.05,0.00022739,2]
[312188176,1705683073747,-500.0,0.00022739,2]
[312188177,1705683073757,-764.03,0.00022739,2]
[312188178,1705683073767,-546.89,0.00022739,2]
[312188179,1705683073776,-500.0,0.00022739,2]
[312188180,1705683073788,-500.0,0.00022739,2]
[312188181,1705683073797,-500.0,0.00022739,2]
[312188182,1705683073806,-500.0,0.00022739,2]
[312188183,1705683073816,-2196.87,0.00022739,2]
[312188184,1705683073826,-500.0,0.00022739,2]
[312188185,1705683073835,-553.1,0.00022739,2]
[312188186,1705683073845,-500.0,0.00022739,2]
[312188187,1705683073855,-500.0,0.00022739,2]
[312188188,1705683073865,-500.0,0.00022739,2]
[312188189,1705683073874,-500.0,0.00022739,2]
[312188190,1705683073884,-500.0,0.00022739,2]
[312188191,1705683073893,-800.12,0.00022739,2]
[312188192,1705683073903,-500.0,0.00022739,2]
[312188193,1705683073913,-696.84,0.00022739,2]
[312188194,1705683073923,-500.0,0.00022739,2]
[312188195,1705683073933,-500.0,0.00022739,2]
[312188196,1705683073942,-500.0,0.00022739,2]
[312188197,1705683073951,-759.79,0.00022739,2]
[312188198,1705683073962,-500.0,0.00022739,2]
[312188199,1705683073971,-500.0,0.00022739,2]
[312188200,1705683073982,-525.68,0.00022739,2]
[312188201,1705683073992,-500.0,0.00022739,2]
[312188202,1705683074002,-500.0,0.00022739,2]
[312188203,1705683074015,-756.34,0.00022739,2]
[312188204,1705683074025,-1301.48,0.00022739,2]
[312188205,1705683074039,-500.0,0.00022739,2]
[312188206,1705683074049,-500.0,0.00022739,2]
[312188207,1705683074058,-500.0,0.00022739,2]
[312188208,1705683074068,-365.74,0.00022739,2]
[312188209,1705683074077,-500.0,0.00022739,2]
[312188210,1705683074087,-500.0,0.00022739,2]
[312188211,1705683074097,-500.0,0.00022739,2]
[312188212,1705683074106,-504.44,0.00022739,2]
[312188213,1705683074115,-500.0,0.00022739,2]
[312188214,1705683074125,-500.0,0.00022739,2]
[312188215,1705683074135,-500.0,0.00022739,2]
[312188216,1705683074145,-500.0,0.00022739,2]
[312188217,1705683074154,-500.0,0.00022739,2]
[312188218,1705683074164,-500.0,0.00022739,7]
[312188219,1705683074174,-500.0,0.00022739,2]
[312188220,1705683074183,-500.0,0.00022739,2]
[312188221,1705683074193,-522.23,0.00022739,2]
[312188222,1705683074202,-500.0,0.00022739,2]
[312188223,1705683074212,-500.0,0.00022739,2]
[312188224,1705683074222,-500.0,0.00022739,2]
[312188225,1705683074231,-500.0,0.00022739,2]
[312188226,1705683074240,-500.0,0.00022739,2]
[312188227,1705683074250,-652.64,0.00022739,2]
[312188228,1705683074259,-878.19,0.00022739,2]
[312188229,1705683074269,-863.27,0.00022739,2]
[312188230,1705683074280,-995.21,0.00022739,2]
[312188231,1705683074290,-501.61,0.00022739,2]
[312188232,1705683074299,-500.0,0.00022739,2]
[312188233,1705683074310,-747.28,0.00022739,2]
[312188234,1705683074319,-500.0,0.00022739,2]
[312188235,1705683074329,-500.0,0.00022739,2]
[312188236,1705683074338,-545.79,0.00022739,2]
[312188237,1705683074348,-500.0,0.00022739,2]
[312188238,1705683074358,-565.84,0.00022739,2]
[312188239,1705683074368,-500.0,0.00022739,2]
[312188240,1705683074378,-500.0,0.00022739,2]
[312188241,1705683074388,-821.94,0.00022739,2]
[312188242,1705683074397,-500.0,0.00022739,2]
[312188243,1705683074408,-546.42,0.00022739,2]
[312188244,1705683074418,-500.0,0.00022739,2]
[312188245,1705683074428,-500.0,0.00022739,2]
[312188246,1705683074438,-554.37,0.00022739,2]
[312188247,1705683074448,-602.17,0.00022739,2]
[312188248,1705683074458,-500.0,0.00022739,2]
[312188249,1705683074467,-500.0,0.00022739,2]
[312188250,1705683074477,-500.0,0.00022739,2]
[312188251,1705683074487,-525.13,0.00022739,2]
[312188252,1705683074499,-500.0,0.00022739,2]
[312188253,1705683074509,-500.0,0.00022739,2]
[312188254,1705683074519,-543.57,0.00022739,2]
[312188255,1705683074531,-500.0,0.00022739,2]
[312188256,1705683074542,-500.0,0.00022739,2]
[312188257,1705683074552,-873.21,0.00022739,2]
[312188258,1705683074564,-638.38,0.00022739,2]
[312188259,1705683074574,-644.19,0.00022739,2]
[312188260,1705683074584,-500.0,0.00022739,2]
[312188261,1705683074595,-500.0,0.00022739,2]
[312188262,1705683074606,-500.0,0.00022739,2]
[312188263,1705683074616,-1372.0,0.00022739,2]
[312188264,1705683074628,-500.0,0.00022739,2]
[312188265,1705683074639,-500.0,0.00022739,2]
[312188266,1705683074649,-500.0,0.00022739,2]
[312188267,1705683074660,-677.09,0.00022739,2]
[312188268,1705683074672,-569.77,0.00022739,2]
[312188269,1705683074686,-595.78,0.00022739,2]
[312188270,1705683074697,-500.0,0.00022739,2]
[312188271,1705683074708,-500.0,0.00022739,2]
[312188272,1705683074719,-500.0,0.00022739,2]
[312188273,1705683074731,-500.0,0.00022739,2]
[312188274,1705683074741,-500.0,0.00022739,2]
[312188275,1705683074752,-751.38,0.00022739,2]
[312188276,1705683074764,-500.0,0.00022739,2]
[312188277,1705683074775,-500.0,0.00022739,2]
[312188278,1705683074791,-500.0,0.00022739,2]
[312188279,1705683074802,-500.0,0.00022739,2]
[312188280,1705683074813,-500.0,0.00022739,2]
[312188281,1705683074824,-500.0,0.00022739,2]
[312188282,1705683074835,-897.87,0.00022739,2]
[312188283,1705683074845,-539.37,0.00022739,2]
[312188284,1705683074856,-500.0,0.00022739,2]
[312188285,1705683074866,-583.15,0.00022739,2]
[312188286,1705683074876,-500.0,0.00022739,2]
[312188287,1705683074886,-500.0,0.00022739,2]
[312188288,1705683074897,-500.0,0.00022739,2]
[312188289,1705683074907,-500.0,0.00022739,2]
[312188290,1705683074917,-500.0,0.00022739,2]
[312188291,1705683074927,-500.0,0.00022739,2]
[312188292,1705683074937,-812.04,0.00022739,2]
[312188293,1705683074947,-500.0,0.00022739,2]
[312188294,1705683074958,-500.0,0.00022739,2]
[312188295,1705683074968,-500.0,0.00022739,2]
[312188296,1705683074979,-500.0,0.00022739,2]
[312188297,1705683074989,-500.0,0.00022739,2]
[312188298,1705683074999,-500.0,0.00022739,2]
[312188299,1705683075010,-500.0,0.00022739,2]
[312188300,1705683075021,-500.0,0.00022739,2]
[312188301,1705683075035,-500.0,0.00022739,2]
[312188302,1705683075046,-724.68,0.00022739,2]
[312188303,1705683075056,-502.94,0.00022739,2]
[312188304,1705683075066,-3497.88,0.00022739,2]
[312188305,1705683075078,-500.0,0.00022739,2]
[312188306,1705683075089,-500.0,0.00022739,2]
[312188307,1705683075099,-1301.77,0.00022739,2]
[312188308,1705683075111,-361.6691953,0.00022739,2]
[312188309,1705683075122,-500.0,0.00022739,2]
[312188310,1705683075132,-500.0,0.00022739,2]
[312188311,1705683075143,-500.0,0.00022739,2]
[312188312,1705683075153,-500.0,0.00022739,2]
[312188313,1705683075163,-500.0,0.00022739,2]
[312188314,1705683075173,-500.0,0.00022739,2]
[312188315,1705683075184,-500.0,0.00022739,2]
[312188316,1705683075194,-886.32,0.00022739,2]
[312188317,1705683075205,-948.81,0.00022739,2]
[312188318,1705683075216,-500.0,0.00022739,2]
[312188319,1705683075226,-500.0,0.00022739,2]
[312188320,1705683075237,-925.51,0.00022739,2]
[312188321,1705683075247,-636.92211625,0.00022739,2]
[312188322,1705683075257,-500.0,0.00022739,2]
[312188323,1705683075267,-500.0,0.00022739,2]
[312188324,1705683075278,-543.9,0.00022739,2]
[312188325,1705683075293,-500.0,0.00022739,2]
[312188326,1705683075303,-500.0,0.00022739,2]
[312188327,1705683075313,-506.65,0.00022739,2]
[312188328,1705683075324,-327.12,0.00022739,2]
[312188329,1705683075334,-500.0,0.00022739,2]
[312188330,1705683075344,-500.0,0.00022739,2]
[312188331,1705683075354,-500.0,0.00022739,2]
[312188332,1705683075364,-500.0,0.00022739,2]
[312188333,1705683075374,-941.69,0.00022739,2]
[312188334,1705683075395,-645.8,0.00022739,2]
[312188335,1705683075406,-500.0,0.00022739,2]
[312188336,1705683075417,-500.0,0.00022739,2]
[312188337,1705683075428,-399.4049568,0.00022739,2]
[312188338,1705683075438,-500.0,0.00022739,2]
[312188339,1705683075448,-500.0,0.00022739,2]
[312188340,1705683075459,-500.0,0.00022739,2]
[312188341,1705683075469,-1104.45,0.00022739,2]
[312188342,1705683075479,-500.0,0.00022739,2]
[312188343,1705683075490,-894.65,0.00022739,2]
[312188344,1705683075500,-500.0,0.00022739,2]
[312188345,1705683075511,-171.45,0.00022739,2]
[312188346,1705683075522,-500.0,0.00022739,2]
[312188347,1705683075536,-686.31,0.00022739,2]
[312188348,1705683075546,-500.0,0.00022739,2]
[312188349,1705683075556,-764.46,0.00022739,2]
[312188350,1705683075567,-500.0,0.00022739,2]
[312188351,1705683075577,-4743.89,0.00022739,2]
[312188352,1705683075587,-500.0,0.00022739,2]
[312188353,1705683075598,-596.97,0.00022739,2]
[312188354,1705683075608,-500.0,0.00022739,2]
[312188355,1705683075620,-500.0,0.00022739,2]
[312188356,1705683075631,-500.0,0.00022739,2]
[312188357,1705683075642,-500.0,0.00022739,2]
[312188358,1705683075653,-500.0,0.00022739,2]
[312188359,1705683075666,-500.0,0.00022739,2]
[312188360,1705683075677,-998.08,0.00022739,2]
[312188361,1705683075688,-616.63291075,0.00022739,2]
[312188362,1705683075699,-769.09,0.00022739,2]
[312188363,1705683075711,-500.0,0.00022739,2]
[312188364,1705683075721,-2508.05,0.00022739,2]
[312188365,1705683075731,-500.0,0.00022739,2]
[312188366,1705683075741,-1118.72,0.00022739,2]
[312188367,1705683075752,-500.0,0.00022739,2]
[312188368,1705683075762,-500.0,0.00022739,2]
[312188369,1705683075774,-500.0,0.00022739,2]
[312188370,1705683075790,-1060.11,0.00022739,2]
[312188371,1705683075800,-848.83,0.00022739,2]
[312188372,1705683075810,-1593.89,0.00022739,2]
[312188373,1705683075820,-161.01,0.00022739,2]
[312188374,1705683075831,-500.0,0.00022739,2]
[312188375,1705683075841,-500.0,0.00022739,2]
[312188376,1705683075852,-847.4,0.00022739,2]
[312188377,1705683075863,-571.07,0.00022739,2]
[312188378,1705683075872,-659.36,0.00022739,2]
[312188379,1705683075883,-500.0,0.00022739,2]
[312188380,1705683075893,-500.0,0.00022739,2]
[312188381,1705683075903,-1278.69,0.00022739,2]
[312188382,1705683075914,-500.0,0.00022739,2]
[312188383,1705683075924,-500.0,0.00022739,2]
[312188384,1705683075934,-888.15,0.00022739,2]
[312188385,1705683075944,-500.0,0.00022739,2]
[312188386,1705683075954,-500.0,0.00022739,2]
[312188387,1705683075964,-1164.14,0.00022739,5]
[312188388,1705683075974,-500.0,0.00022739,2]
[312188389,1705683075984,-1644.51,0.00022739,2]
[312188390,1705683075995,-801.28,0.00022739,2]
[312188391,1705683076005,-1871.72,0.00022739,2]
[312188392,1705683076016,-500.0,0.00022739,2]
[312188393,1705683076026,-500.0,0.00022739,2]
[312188394,1705683076041,-1118.42,0.00022739,2]
[312188395,1705683076052,-1020.01,0.00022739,2]
[312188396,1705683076062,-1224.15,0.00022739,2]
[312188397,1705683076072,-500.0,0.00022739,2]
[312188398,1705683076082,-250.4473777,0.00022739,2]
[312188399,1705683076093,-500.0,0.00022739,2]
[312188400,1705683076103,-500.0,0.00022739,2]
[312188401,1705683076113,-1110.9,0.00022739,2]
[312188402,1705683076124,-500.0,0.00022739,2]
[312188403,1705683076135,-500.0,0.00022739,2]
[312188404,1705683076145,-862.37,0.00022739,2]
[312188405,1705683076157,-796.91,0.00022739,2]
[312188406,1705683076167,-500.0,0.00022739,2]
[312188407,1705683076177,-500.0,0.00022739,2]
[312188408,1705683076187,-500.0,0.00022739,2]
[312188409,1705683076197,-500.0,0.00022739,2]
[312188410,1705683076206,-500.0,0.00022739,2]
[312188411,1705683076216,-500.0,0.00022739,2]
[312188412,1705683076226,-500.0,0.00022739,2]
[312188413,1705683076238,-1462.02,0.00022739,2]
[312188414,1705683076248,-691.66,0.00022739,2]
[312188415,1705683076260,-500.0,0.00022739,2]
[312188416,1705683076270,-500.0,0.00022739,2]
[312188417,1705683076282,-500.0,0.00022739,2]